[Event "November 21 Early 2023"]
[Site "https://www.chess.com"]
[Date "2023.11.21"]
[Round "9"]
[White "Martin, Lewis"]
[Black "Kubatko, Ivan"]
[Result "0-1"]
[Board "138"]
[TimeControl "180+1"]
[WhiteFideId "410551"]
[BlackFideId "24111473"]
[WhiteElo "2145"]
[BlackElo "2285"]
[WhiteTeam "ENG"]
[BlackTeam "RUS"]
[WhiteClock "0:01:31"]
[BlackClock "0:00:53"]

1. c4 {[%clk 0:03:00]}  e6 {[%clk 0:02:54]} 2. g3 {[%clk 0:03:00]}  d5 {[%clk 0:02:54]} 3. Bg2 {[%clk 0:02:59]}  d4 {[%clk 0:02:53]} 4. d3 {[%clk 0:02:52]}  c5 {[%clk 0:02:53]} 5. Nf3 {[%clk 0:02:52]}  Nc6 {[%clk 0:02:53]} 6. a3 {[%clk 0:02:49]}  Nf6 {[%clk 0:02:51]} 7. O-O {[%clk 0:02:49]}  Be7 {[%clk 0:02:50]} 8. Re1 {[%clk 0:02:44]}  O-O {[%clk 0:02:49]} 9. e4 {[%clk 0:02:41]}  dxe3 {[%clk 0:02:43]} 10. Bxe3 {[%clk 0:02:41]}  b6 {[%clk 0:02:17]} 11. Ne5 {[%clk 0:02:24]}  Nxe5 {[%clk 0:02:17]} 12. Bxa8 {[%clk 0:02:24]}  Nxd3 {[%clk 0:01:55]} 13. Rf1 {[%clk 0:02:08]}  Ba6 {[%clk 0:01:38]} 14. Bg2 {[%clk 0:02:03]}  Nxb2 {[%clk 0:01:26]} 15. Qc2 {[%clk 0:01:54]}  Nxc4 {[%clk 0:01:24]} 16. Bc1 {[%clk 0:01:51]}  Qc8 {[%clk 0:01:14]} 17. Rd1 {[%clk 0:01:46]}  Nd5 {[%clk 0:00:55]} 18. Nc3 {[%clk 0:01:43]}  Nxc3 {[%clk 0:00:52]} 19. Qxc3 {[%clk 0:01:31]}  Bf6 {[%clk 0:00:53]} 0-1

[Event "November 21 Early 2023"]
[Site "https://www.chess.com"]
[Date "2023.11.21"]
[Round "9"]
[White "Figorito, Nick"]
[Black "Quirke, Jeffrey"]
[Result "0-1"]
[Board "140"]
[TimeControl "180+1"]
[WhiteFideId "30923689"]
[BlackFideId "2013029"]
[WhiteElo "2381"]
[BlackElo "2227"]
[WhiteTeam "USA"]
[BlackTeam "USA"]
[WhiteClock "0:01:35"]
[BlackClock "0:01:28"]

1. Nf3 {[%clk 0:03:00]}  Nf6 {[%clk 0:02:52]} 2. g3 {[%clk 0:03:01]}  g6 {[%clk 0:02:50]} 3. Bg2 {[%clk 0:03:01]}  Bg7 {[%clk 0:02:51]} 4. O-O {[%clk 0:03:02]}  O-O {[%clk 0:02:51]} 5. c4 {[%clk 0:03:03]}  d5 {[%clk 0:02:51]} 6. d4 {[%clk 0:03:02]}  c6 {[%clk 0:02:49]} 7. cxd5 {[%clk 0:03:02]}  cxd5 {[%clk 0:02:50]} 8. Ne5 {[%clk 0:03:02]}  Nc6 {[%clk 0:02:47]} 9. Nxc6 {[%clk 0:03:02]}  bxc6 {[%clk 0:02:48]} 10. Nc3 {[%clk 0:03:03]}  Bf5 {[%clk 0:02:46]} 11. Bf4 {[%clk 0:03:03]}  Qd7 {[%clk 0:02:45]} 12. Be5 {[%clk 0:03:03]}  Bh3 {[%clk 0:02:38]} 13. Rc1 {[%clk 0:03:01]}  Bxg2 {[%clk 0:02:37]} 14. Kxg2 {[%clk 0:03:02]}  Rfc8 {[%clk 0:02:31]} 15. Na4 {[%clk 0:02:59]}  Ne4 {[%clk 0:02:30]} 16. Bxg7 {[%clk 0:02:56]}  Kxg7 {[%clk 0:02:31]} 17. Nc5 {[%clk 0:02:56]}  Nxc5 {[%clk 0:02:31]} 18. Rxc5 {[%clk 0:02:57]}  e5 {[%clk 0:02:27]} 19. dxe5 {[%clk 0:02:53]}  Qe7 {[%clk 0:02:27]} 20. Qd4 {[%clk 0:02:52]}  Qe6 {[%clk 0:02:15]} 21. Rfc1 {[%clk 0:02:51]}  Rab8 {[%clk 0:02:08]} 22. b4 {[%clk 0:02:49]}  Rb6 {[%clk 0:02:06]} 23. a3 {[%clk 0:02:48]}  Re8 {[%clk 0:02:06]} 24. e4 {[%clk 0:02:40]}  Qxe5 {[%clk 0:02:02]} 25. Qxe5+ {[%clk 0:02:36]}  Rxe5 {[%clk 0:02:03]} 26. exd5 {[%clk 0:02:27]}  Rxd5 {[%clk 0:02:03]} 27. Rxc6 {[%clk 0:02:24]}  Rd3 {[%clk 0:02:02]} 28. Rxb6 {[%clk 0:02:21]}  axb6 {[%clk 0:02:02]} 29. Rc6 {[%clk 0:02:04]}  Rxa3 {[%clk 0:02:02]} 30. Rxb6 {[%clk 0:02:04]}  h5 {[%clk 0:01:59]} 31. h4 {[%clk 0:02:03]}  Rb3 {[%clk 0:01:56]} 32. Kf1 {[%clk 0:02:01]}  Rb2 {[%clk 0:01:55]} 33. Rb7 {[%clk 0:01:55]}  Kf6 {[%clk 0:01:55]} 34. b5 {[%clk 0:01:56]}  Ke6 {[%clk 0:01:54]} 35. b6 {[%clk 0:01:56]}  f6 {[%clk 0:01:48]} 36. Rg7 {[%clk 0:01:49]}  Rxb6 {[%clk 0:01:41]} 37. Rxg6 {[%clk 0:01:50]}  Rb5 {[%clk 0:01:35]} 38. Kg2 {[%clk 0:01:47]}  Kf7 {[%clk 0:01:29]} 39. Rh6 {[%clk 0:01:35]}  Kg7 {[%clk 0:01:28]} 0-1

[Event "November 21 Early 2023"]
[Site "https://www.chess.com"]
[Date "2023.11.21"]
[Round "9"]
[White "KorolDimitriy75"]
[Black "Su, Dion"]
[Result "0-1"]
[Board "146"]
[TimeControl "180+1"]
[BlackFideId "2029731"]
[WhiteElo "2331"]
[BlackElo "2395"]
[BlackTeam "USA"]
[WhiteClock "0:00:00"]
[BlackClock "0:00:10"]

1. d4 {[%clk 0:03:00]}  Nf6 {[%clk 0:03:00]} 2. c4 {[%clk 0:03:00]}  e6 {[%clk 0:03:00]} 3. Nc3 {[%clk 0:03:01]}  Bb4 {[%clk 0:02:59]} 4. Qc2 {[%clk 0:03:01]}  O-O {[%clk 0:02:59]} 5. e4 {[%clk 0:03:01]}  d5 {[%clk 0:02:59]} 6. cxd5 {[%clk 0:03:02]}  exd5 {[%clk 0:02:59]} 7. e5 {[%clk 0:03:03]}  Ne4 {[%clk 0:02:59]} 8. Bd3 {[%clk 0:03:04]}  f5 {[%clk 0:02:44]} 9. Ne2 {[%clk 0:03:04]}  c5 {[%clk 0:02:43]} 10. O-O {[%clk 0:02:52]}  c4 {[%clk 0:02:43]} 11. Bxe4 {[%clk 0:02:43]}  fxe4 {[%clk 0:02:44]} 12. b3 {[%clk 0:02:42]}  Nc6 {[%clk 0:02:29]} 13. bxc4 {[%clk 0:02:28]}  dxc4 {[%clk 0:02:30]} 14. Nxe4 {[%clk 0:00:58]}  b5 {[%clk 0:02:21]} 15. Be3 {[%clk 0:00:53]}  Bf5 {[%clk 0:02:13]} 16. N2g3 {[%clk 0:00:35]}  Bg6 {[%clk 0:02:10]} 17. Rad1 {[%clk 0:00:21]}  Qd5 {[%clk 0:02:09]} 18. f4 {[%clk 0:00:17]}  Ne7 {[%clk 0:01:52]} 19. h3 {[%clk 0:00:11]}  Nf5 {[%clk 0:01:48]} 20. Qe2 {[%clk 0:00:10]}  Nxg3 {[%clk 0:00:13]} 21. Nxg3 {[%clk 0:00:11]}  Bd3 {[%clk 0:00:12]} 22. Rxd3 {[%clk 0:00:10]}  cxd3 {[%clk 0:00:13]} 23. Qxd3 {[%clk 0:00:11]}  Rad8 {[%clk 0:00:12]} 24. Rf3 {[%clk 0:00:06]}  Be7 {[%clk 0:00:11]} 25. Bd2 {[%clk 0:00:04]}  Qc4 {[%clk 0:00:11]} 26. Qxc4+ {[%clk 0:00:03]}  bxc4 {[%clk 0:00:12]} 27. Bc3 {[%clk 0:00:03]}  a5 {[%clk 0:00:12]} 28. Ne4 {[%clk 0:00:03]}  Bb4 {[%clk 0:00:12]} 29. f5 {[%clk 0:00:02]}  Bxc3 {[%clk 0:00:12]} 30. Rxc3 {[%clk 0:00:01]}  Rxd4 {[%clk 0:00:12]} 31. Nd6 {[%clk 0:00:00]}  Rd5 {[%clk 0:00:10]} 0-1

[Event "November 21 Early 2023"]
[Site "https://www.chess.com"]
[Date "2023.11.21"]
[Round "9"]
[White "Koridze, Lile"]
[Black "SeLaPegoACualquiera"]
[Result "1-0"]
[Board "150"]
[TimeControl "180+1"]
[WhiteFideId "13612514"]
[WhiteElo "2061"]
[BlackElo "2170"]
[WhiteTeam "GEO"]
[WhiteClock "0:00:11"]
[BlackClock "0:00:09"]

1. d4 {[%clk 0:03:00]}  Nf6 {[%clk 0:02:54]} 2. c4 {[%clk 0:03:00]}  c5 {[%clk 0:02:54]} 3. d5 {[%clk 0:03:01]}  b5 {[%clk 0:02:54]} 4. cxb5 {[%clk 0:03:01]}  a6 {[%clk 0:02:54]} 5. bxa6 {[%clk 0:03:00]}  Bxa6 {[%clk 0:02:55]} 6. Nc3 {[%clk 0:03:01]}  g6 {[%clk 0:02:53]} 7. e4 {[%clk 0:03:01]}  Bxf1 {[%clk 0:02:53]} 8. Kxf1 {[%clk 0:03:02]}  d6 {[%clk 0:02:53]} 9. g3 {[%clk 0:03:02]}  Nbd7 {[%clk 0:02:54]} 10. Kg2 {[%clk 0:03:02]}  Ra6 {[%clk 0:02:55]} 11. Qe2 {[%clk 0:03:00]}  Qa8 {[%clk 0:02:55]} 12. Nb5 {[%clk 0:02:57]}  Qb7 {[%clk 0:02:47]} 13. Nc7+ {[%clk 0:02:56]}  Qxc7 {[%clk 0:02:43]} 14. Qxa6 {[%clk 0:02:54]}  Bg7 {[%clk 0:02:43]} 15. Ne2 {[%clk 0:02:52]}  O-O {[%clk 0:02:43]} 16. Qd3 {[%clk 0:02:50]}  e6 {[%clk 0:02:39]} 17. dxe6 {[%clk 0:02:44]}  fxe6 {[%clk 0:02:39]} 18. Nc3 {[%clk 0:02:45]}  Ne5 {[%clk 0:02:32]} 19. Qd1 {[%clk 0:02:40]}  Qc6 {[%clk 0:02:17]} 20. Re1 {[%clk 0:02:38]}  c4 {[%clk 0:02:09]} 21. f3 {[%clk 0:02:19]}  d5 {[%clk 0:01:55]} 22. exd5 {[%clk 0:02:17]}  Nxd5 {[%clk 0:01:56]} 23. Nxd5 {[%clk 0:02:13]}  exd5 {[%clk 0:01:55]} 24. Rf1 {[%clk 0:01:52]}  d4 {[%clk 0:01:49]} 25. Rb1 {[%clk 0:01:32]}  c3 {[%clk 0:01:28]} 26. bxc3 {[%clk 0:01:26]}  dxc3 {[%clk 0:01:27]} 27. Qb3+ {[%clk 0:01:23]}  Kh8 {[%clk 0:01:02]} 28. Bf4 {[%clk 0:01:16]}  Nd3 {[%clk 0:00:50]} 29. Rbd1 {[%clk 0:00:56]}  Nxf4+ {[%clk 0:00:39]} 30. gxf4 {[%clk 0:00:55]}  Qf6 {[%clk 0:00:24]} 31. Qc4 {[%clk 0:00:44]}  Qh4 {[%clk 0:00:24]} 32. Rde1 {[%clk 0:00:36]}  h5 {[%clk 0:00:24]} 33. Re4 {[%clk 0:00:32]}  Qf6 {[%clk 0:00:19]} 34. a4 {[%clk 0:00:31]}  Qf5 {[%clk 0:00:19]} 35. Rd1 {[%clk 0:00:27]}  h4 {[%clk 0:00:18]} 36. h3 {[%clk 0:00:27]}  g5 {[%clk 0:00:17]} 37. Rd5 {[%clk 0:00:25]}  Qf6 {[%clk 0:00:15]} 38. Rxg5 {[%clk 0:00:24]}  c2 {[%clk 0:00:14]} 39. Qxc2 {[%clk 0:00:18]}  Bh6 {[%clk 0:00:14]} 40. Rg4 {[%clk 0:00:13]}  Rd8 {[%clk 0:00:12]} 41. Qe2 {[%clk 0:00:12]}  Qc3 {[%clk 0:00:10]} 42. Re8+ {[%clk 0:00:12]}  Kh7 {[%clk 0:00:09]} 43. Qe4# {[%clk 0:00:11]} 1-0

[Event "November 21 Early 2023"]
[Site "https://www.chess.com"]
[Date "2023.11.21"]
[Round "9"]
[White "Mushini Ajay"]
[Black "Cueto, Jonny"]
[Result "1-0"]
[Board "154"]
[TimeControl "180+1"]
[WhiteFideId "35066188"]
[BlackFideId "3300145"]
[WhiteElo "2162"]
[BlackElo "2155"]
[WhiteTeam "IND"]
[BlackTeam "BOL"]
[WhiteClock "0:00:26"]
[BlackClock "0:00:02"]

1. e4 {[%clk 0:02:41]}  e6 {[%clk 0:02:55]} 2. d4 {[%clk 0:02:41]}  d5 {[%clk 0:02:54]} 3. Nc3 {[%clk 0:02:41]}  Nf6 {[%clk 0:02:53]} 4. e5 {[%clk 0:02:41]}  Nfd7 {[%clk 0:02:53]} 5. f4 {[%clk 0:02:40]}  c5 {[%clk 0:02:54]} 6. Nf3 {[%clk 0:02:40]}  Nc6 {[%clk 0:02:54]} 7. Be3 {[%clk 0:02:39]}  Be7 {[%clk 0:02:53]} 8. Be2 {[%clk 0:02:38]}  a6 {[%clk 0:02:39]} 9. O-O {[%clk 0:02:37]}  g6 {[%clk 0:02:37]} 10. dxc5 {[%clk 0:02:36]}  Nxc5 {[%clk 0:02:34]} 11. Nd4 {[%clk 0:02:33]}  O-O {[%clk 0:02:29]} 12. Kh1 {[%clk 0:02:29]}  Nxd4 {[%clk 0:02:28]} 13. Bxd4 {[%clk 0:02:28]}  b5 {[%clk 0:02:28]} 14. a4 {[%clk 0:02:17]}  b4 {[%clk 0:02:26]} 15. Nb1 {[%clk 0:02:13]}  Bb7 {[%clk 0:02:16]} 16. Nd2 {[%clk 0:02:13]}  Rc8 {[%clk 0:02:11]} 17. c3 {[%clk 0:02:11]}  Ne4 {[%clk 0:01:49]} 18. Nxe4 {[%clk 0:02:09]}  dxe4 {[%clk 0:01:49]} 19. a5 {[%clk 0:02:02]}  Qd5 {[%clk 0:01:40]} 20. Qe1 {[%clk 0:01:48]}  Rfd8 {[%clk 0:01:35]} 21. Bb6 {[%clk 0:01:45]}  Rd7 {[%clk 0:01:34]} 22. cxb4 {[%clk 0:01:44]}  Qb3 {[%clk 0:01:34]} 23. b5 {[%clk 0:01:31]}  Bb4 {[%clk 0:01:04]} 24. Qg3 {[%clk 0:01:28]}  Qxb2 {[%clk 0:00:52]} 25. bxa6 {[%clk 0:01:21]}  Ba8 {[%clk 0:00:47]} 26. Bb5 {[%clk 0:01:03]}  Rd2 {[%clk 0:00:41]} 27. Be3 {[%clk 0:00:59]}  Rdc2 {[%clk 0:00:31]} 28. Rab1 {[%clk 0:00:55]}  Qa3 {[%clk 0:00:23]} 29. f5 {[%clk 0:00:35]}  exf5 {[%clk 0:00:19]} 30. Rxf5 {[%clk 0:00:33]}  Rc1+ {[%clk 0:00:15]} 31. Rxc1 {[%clk 0:00:27]}  Rxc1+ {[%clk 0:00:15]} 32. Bxc1 {[%clk 0:00:27]}  Qxc1+ {[%clk 0:00:15]} 33. Rf1 {[%clk 0:00:28]}  Qc5 {[%clk 0:00:08]} 34. e6 {[%clk 0:00:26]}  Bc6 {[%clk 0:00:02]} 35. exf7+ {[%clk 0:00:26]}  Kf8 {[%clk 0:00:02]} 36. Bxc6 {[%clk 0:00:26]}  Qxc6 {[%clk 0:00:02]} 37. Qb8+ {[%clk 0:00:25]}  Kg7 {[%clk 0:00:02]} 38. f8=Q+ {[%clk 0:00:26]}  Bxf8 {[%clk 0:00:02]} 39. Qxf8# {[%clk 0:00:26]} 1-0

[Event "November 21 Early 2023"]
[Site "https://www.chess.com"]
[Date "2023.11.21"]
[Round "9"]
[White "Osmonbekov, Talaibek"]
[Black "Ambrogi, Agustin"]
[Result "0-1"]
[Board "155"]
[TimeControl "180+1"]
[WhiteFideId "2017253"]
[BlackFideId "170933"]
[WhiteElo "2135"]
[BlackElo "2214"]
[WhiteTeam "USA"]
[BlackTeam "ARG"]
[WhiteClock "0:00:00"]
[BlackClock "0:01:43"]

1. d4 {[%clk 0:03:00]}  Nf6 {[%clk 0:02:55]} 2. Nc3 {[%clk 0:03:01]}  d5 {[%clk 0:02:55]} 3. Bf4 {[%clk 0:03:01]}  Bf5 {[%clk 0:02:52]} 4. e3 {[%clk 0:03:02]}  e6 {[%clk 0:02:52]} 5. Nf3 {[%clk 0:03:01]}  Bd6 {[%clk 0:02:52]} 6. Ne5 {[%clk 0:03:01]}  O-O {[%clk 0:02:51]} 7. g4 {[%clk 0:03:00]}  Bg6 {[%clk 0:02:50]} 8. h4 {[%clk 0:03:01]}  h5 {[%clk 0:02:47]} 9. g5 {[%clk 0:02:53]}  Bxe5 {[%clk 0:02:39]} 10. Bxe5 {[%clk 0:02:43]}  Nfd7 {[%clk 0:02:37]} 11. Bg3 {[%clk 0:02:34]}  c5 {[%clk 0:02:37]} 12. Bd3 {[%clk 0:01:58]}  Bxd3 {[%clk 0:02:36]} 13. Qxd3 {[%clk 0:01:58]}  g6 {[%clk 0:02:35]} 14. Bd6 {[%clk 0:01:54]}  Re8 {[%clk 0:02:25]} 15. dxc5 {[%clk 0:01:52]}  Na6 {[%clk 0:02:24]} 16. Qd4 {[%clk 0:01:46]}  Rc8 {[%clk 0:02:22]} 17. b4 {[%clk 0:01:30]}  b6 {[%clk 0:02:22]} 18. c6 {[%clk 0:01:00]}  Rxc6 {[%clk 0:02:21]} 19. b5 {[%clk 0:01:00]}  Rc4 {[%clk 0:02:21]} 20. Qd2 {[%clk 0:00:49]}  Qc8 {[%clk 0:02:13]} 21. bxa6 {[%clk 0:00:40]}  Rxc3 {[%clk 0:02:13]} 22. O-O {[%clk 0:00:33]}  Rxc2 {[%clk 0:02:12]} 23. Qb4 {[%clk 0:00:25]}  Rc4 {[%clk 0:02:10]} 24. Qb2 {[%clk 0:00:20]}  Qxa6 {[%clk 0:02:09]} 25. Bg3 {[%clk 0:00:18]}  Rec8 {[%clk 0:02:08]} 26. Rfc1 {[%clk 0:00:17]}  b5 {[%clk 0:01:51]} 27. a3 {[%clk 0:00:16]}  Qc6 {[%clk 0:01:49]} 28. Rxc4 {[%clk 0:00:15]}  bxc4 {[%clk 0:01:50]} 29. Qc3 {[%clk 0:00:15]}  Nc5 {[%clk 0:01:48]} 30. Be5 {[%clk 0:00:08]}  Ne4 {[%clk 0:01:48]} 31. Qc2 {[%clk 0:00:04]}  c3 {[%clk 0:01:48]} 32. Rc1 {[%clk 0:00:04]}  Qc4 {[%clk 0:01:46]} 33. Bd4 {[%clk 0:00:03]}  a6 {[%clk 0:01:45]} 34. Rb1 {[%clk 0:00:00]}  Nd2 {[%clk 0:01:43]} 0-1

[Event "November 21 Early 2023"]
[Site "https://www.chess.com"]
[Date "2023.11.21"]
[Round "9"]
[White "Kornyukov, Alexey"]
[Black "DonCiao"]
[Result "0-1"]
[Board "158"]
[TimeControl "180+1"]
[WhiteFideId "4150457"]
[WhiteElo "2352"]
[BlackElo "2127"]
[WhiteTeam "RUS"]
[WhiteClock "0:01:28"]
[BlackClock "0:01:07"]

1. d4 {[%clk 0:03:00]}  Nf6 {[%clk 0:02:59]} 2. Nc3 {[%clk 0:03:00]}  d5 {[%clk 0:02:54]} 3. Bg5 {[%clk 0:02:59]}  Nbd7 {[%clk 0:02:53]} 4. Nf3 {[%clk 0:02:57]}  g6 {[%clk 0:02:50]} 5. e3 {[%clk 0:02:55]}  Bg7 {[%clk 0:02:50]} 6. Bd3 {[%clk 0:02:55]}  O-O {[%clk 0:02:49]} 7. Qd2 {[%clk 0:02:51]}  c5 {[%clk 0:02:45]} 8. dxc5 {[%clk 0:02:50]}  Nxc5 {[%clk 0:02:39]} 9. O-O-O {[%clk 0:02:50]}  Qb6 {[%clk 0:02:24]} 10. h4 {[%clk 0:02:38]}  Nce4 {[%clk 0:02:14]} 11. Bxe4 {[%clk 0:02:09]}  Nxe4 {[%clk 0:02:09]} 12. Qxd5 {[%clk 0:02:07]}  Nxc3 {[%clk 0:02:05]} 13. bxc3 {[%clk 0:02:07]}  Be6 {[%clk 0:01:58]} 14. Qe4 {[%clk 0:01:48]}  Bxc3 {[%clk 0:01:54]} 15. Rd3 {[%clk 0:01:45]}  Qb2+ {[%clk 0:01:44]} 16. Kd1 {[%clk 0:01:44]}  Qb1+ {[%clk 0:01:42]} 17. Ke2 {[%clk 0:01:44]}  Qxh1 {[%clk 0:01:27]} 18. Rxc3 {[%clk 0:01:44]}  Qxg2 {[%clk 0:01:25]} 19. Bxe7 {[%clk 0:01:43]}  Rfe8 {[%clk 0:01:23]} 20. Bf6 {[%clk 0:01:37]}  Bg4 {[%clk 0:01:21]} 21. Qf4 {[%clk 0:01:37]}  Bxf3+ {[%clk 0:01:18]} 22. Qxf3 {[%clk 0:01:36]}  Qxf3+ {[%clk 0:01:18]} 23. Kxf3 {[%clk 0:01:36]}  Rac8 {[%clk 0:01:18]} 24. Rxc8 {[%clk 0:01:30]}  Rxc8 {[%clk 0:01:17]} 25. c3 {[%clk 0:01:31]}  Rc6 {[%clk 0:01:15]} 26. Bd4 {[%clk 0:01:28]}  Ra6 {[%clk 0:01:07]} 0-1

[Event "November 21 Early 2023"]
[Site "https://www.chess.com"]
[Date "2023.11.21"]
[Round "9"]
[White "Golubenko, Valentina"]
[Black "Zepeda Berlanga, Jan Enrique"]
[Result "1-0"]
[Board "159"]
[TimeControl "180+1"]
[WhiteFideId "4501993"]
[BlackFideId "5132355"]
[WhiteElo "2126"]
[BlackElo "1680"]
[WhiteTeam "CRO"]
[BlackTeam "MEX"]
[WhiteClock "0:01:18"]
[BlackClock "0:00:00"]

1. d4 {[%clk 0:02:57]}  Nf6 {[%clk 0:01:58]} 2. g3 {[%clk 0:02:54]}  g6 {[%clk 0:01:52]} 3. Bg2 {[%clk 0:02:54]}  Bg7 {[%clk 0:01:51]} 4. c4 {[%clk 0:02:54]}  O-O {[%clk 0:01:51]} 5. Nc3 {[%clk 0:02:52]}  d6 {[%clk 0:01:46]} 6. d5 {[%clk 0:02:52]}  c5 {[%clk 0:01:42]} 7. dxc6 {[%clk 0:02:50]}  Nxc6 {[%clk 0:01:40]} 8. Nf3 {[%clk 0:02:50]}  Bf5 {[%clk 0:01:33]} 9. O-O {[%clk 0:02:49]}  Rc8 {[%clk 0:01:32]} 10. Bd2 {[%clk 0:02:44]}  Qd7 {[%clk 0:01:30]} 11. Rc1 {[%clk 0:02:39]}  a6 {[%clk 0:01:29]} 12. b3 {[%clk 0:02:37]}  Bh3 {[%clk 0:01:26]} 13. Bf4 {[%clk 0:02:32]}  Rfd8 {[%clk 0:01:20]} 14. e4 {[%clk 0:02:21]}  Bxg2 {[%clk 0:01:18]} 15. Kxg2 {[%clk 0:02:20]}  h5 {[%clk 0:01:03]} 16. Nd5 {[%clk 0:02:19]}  Nxd5 {[%clk 0:00:56]} 17. exd5 {[%clk 0:02:19]}  Ne5 {[%clk 0:00:50]} 18. Nxe5 {[%clk 0:02:18]}  dxe5 {[%clk 0:00:51]} 19. Bg5 {[%clk 0:02:14]}  b5 {[%clk 0:00:43]} 20. Qe2 {[%clk 0:02:08]}  bxc4 {[%clk 0:00:41]} 21. bxc4 {[%clk 0:02:07]}  f6 {[%clk 0:00:32]} 22. Be3 {[%clk 0:02:07]}  e6 {[%clk 0:00:31]} 23. Rfd1 {[%clk 0:02:06]}  exd5 {[%clk 0:00:29]} 24. cxd5 {[%clk 0:02:03]}  Rxc1 {[%clk 0:00:26]} 25. Bxc1 {[%clk 0:02:02]}  Qb7 {[%clk 0:00:26]} 26. Qc4 {[%clk 0:01:58]}  Rd6 {[%clk 0:00:21]} 27. Ba3 {[%clk 0:01:55]}  Rd7 {[%clk 0:00:20]} 28. Kg1 {[%clk 0:01:50]}  Bf8 {[%clk 0:00:18]} 29. d6+ {[%clk 0:01:41]}  Kg7 {[%clk 0:00:19]} 30. Qe6 {[%clk 0:01:39]}  Qb5 {[%clk 0:00:13]} 31. Rc1 {[%clk 0:01:30]}  Kh6 {[%clk 0:00:00]} 32. Rc7 {[%clk 0:01:18]} 1-0

[Event "November 21 Early 2023"]
[Site "https://www.chess.com"]
[Date "2023.11.21"]
[Round "9"]
[White "Filippova, Margarita"]
[Black "Osiecki, Stanislaw"]
[Result "1-0"]
[Board "162"]
[TimeControl "180+1"]
[WhiteFideId "34199680"]
[BlackFideId "1102990"]
[WhiteElo "1916"]
[BlackElo "2048"]
[WhiteTeam "RUS"]
[BlackTeam "POL"]
[WhiteClock "0:01:24"]
[BlackClock "0:00:00"]

1. e4 {[%clk 0:03:00]}  e6 {[%clk 0:02:42]} 2. d4 {[%clk 0:03:00]}  d5 {[%clk 0:02:41]} 3. e5 {[%clk 0:03:00]}  c5 {[%clk 0:02:40]} 4. c3 {[%clk 0:03:01]}  Nc6 {[%clk 0:02:40]} 5. Nf3 {[%clk 0:02:59]}  Qb6 {[%clk 0:02:40]} 6. Na3 {[%clk 0:02:59]}  cxd4 {[%clk 0:02:35]} 7. cxd4 {[%clk 0:03:00]}  Bxa3 {[%clk 0:02:34]} 8. bxa3 {[%clk 0:03:01]}  Qa5+ {[%clk 0:02:33]} 9. Qd2 {[%clk 0:03:01]}  Qxd2+ {[%clk 0:02:33]} 10. Bxd2 {[%clk 0:03:02]}  Nge7 {[%clk 0:02:33]} 11. Bd3 {[%clk 0:03:02]}  Bd7 {[%clk 0:02:32]} 12. Ke2 {[%clk 0:03:01]}  O-O {[%clk 0:02:30]} 13. h4 {[%clk 0:03:00]}  a6 {[%clk 0:02:22]} 14. a4 {[%clk 0:02:56]}  Na7 {[%clk 0:02:15]} 15. a5 {[%clk 0:02:53]}  Bb5 {[%clk 0:02:13]} 16. Rab1 {[%clk 0:02:54]}  Rfc8 {[%clk 0:02:03]} 17. a4 {[%clk 0:02:51]}  Bxd3+ {[%clk 0:01:48]} 18. Kxd3 {[%clk 0:02:52]}  Rab8 {[%clk 0:01:43]} 19. Rhc1 {[%clk 0:02:49]}  Rxc1 {[%clk 0:01:42]} 20. Rxc1 {[%clk 0:02:50]}  Rc8 {[%clk 0:01:41]} 21. Rb1 {[%clk 0:02:50]}  Rc7 {[%clk 0:01:41]} 22. Ne1 {[%clk 0:02:47]}  Nac6 {[%clk 0:01:29]} 23. Nc2 {[%clk 0:02:45]}  Kf8 {[%clk 0:01:24]} 24. g4 {[%clk 0:02:45]}  f6 {[%clk 0:01:14]} 25. f4 {[%clk 0:02:43]}  f5 {[%clk 0:01:10]} 26. g5 {[%clk 0:02:42]}  g6 {[%clk 0:01:10]} 27. Rb6 {[%clk 0:02:23]}  Kg7 {[%clk 0:01:04]} 28. Nb4 {[%clk 0:02:21]}  h5 {[%clk 0:00:46]} 29. Na2 {[%clk 0:02:15]}  Kf7 {[%clk 0:00:45]} 30. Rb2 {[%clk 0:02:10]}  Ke8 {[%clk 0:00:44]} 31. Bc3 {[%clk 0:02:08]}  Kd7 {[%clk 0:00:44]} 32. Nc1 {[%clk 0:02:07]}  Kc8 {[%clk 0:00:44]} 33. Nb3 {[%clk 0:02:07]}  Nd8 {[%clk 0:00:35]} 34. Nc5 {[%clk 0:02:06]}  Nec6 {[%clk 0:00:32]} 35. Rb6 {[%clk 0:02:00]}  Re7 {[%clk 0:00:21]} 36. Bb4 {[%clk 0:01:56]}  Rf7 {[%clk 0:00:19]} 37. Ba3 {[%clk 0:01:54]}  Rg7 {[%clk 0:00:17]} 38. Nb3 {[%clk 0:01:50]}  Rf7 {[%clk 0:00:15]} 39. Bd6 {[%clk 0:01:49]}  Rg7 {[%clk 0:00:13]} 40. Nc5 {[%clk 0:01:45]}  Nxa5 {[%clk 0:00:10]} 41. Bf8 {[%clk 0:01:27]}  Rf7 {[%clk 0:00:09]} 42. Bd6 {[%clk 0:01:25]}  Nc4 {[%clk 0:00:08]} 43. Rb1 {[%clk 0:01:25]}  Nxd6 {[%clk 0:00:08]} 44. exd6 {[%clk 0:01:25]}  Nc6 {[%clk 0:00:00]} 45. d7+ {[%clk 0:01:24]} 1-0

[Event "November 21 Early 2023"]
[Site "https://www.chess.com"]
[Date "2023.11.21"]
[Round "9"]
[White "Gyulamiryan-koryun"]
[Black "Zoete, Roelant"]
[Result "0-1"]
[Board "166"]
[TimeControl "180+1"]
[BlackFideId "40103269"]
[WhiteElo "1902"]
[BlackElo "2234"]
[BlackTeam "NED"]
[WhiteClock "0:00:10"]
[BlackClock "0:01:04"]

1. e4 {[%clk 0:02:57]}  e5 {[%clk 0:02:58]} 2. Nf3 {[%clk 0:02:51]}  Nc6 {[%clk 0:02:50]} 3. d4 {[%clk 0:02:51]}  exd4 {[%clk 0:02:51]} 4. Bc4 {[%clk 0:02:50]}  Bc5 {[%clk 0:02:50]} 5. c3 {[%clk 0:02:50]}  Nf6 {[%clk 0:02:48]} 6. e5 {[%clk 0:02:47]}  d5 {[%clk 0:02:47]} 7. Bb5 {[%clk 0:02:47]}  Ne4 {[%clk 0:02:42]} 8. cxd4 {[%clk 0:02:48]}  Bb4+ {[%clk 0:02:38]} 9. Bd2 {[%clk 0:02:48]}  Nxd2 {[%clk 0:02:37]} 10. Nbxd2 {[%clk 0:02:49]}  Bd7 {[%clk 0:02:35]} 11. O-O {[%clk 0:02:48]}  a6 {[%clk 0:02:36]} 12. Ba4 {[%clk 0:02:45]}  O-O {[%clk 0:02:35]} 13. Bb3 {[%clk 0:02:45]}  Ne7 {[%clk 0:02:33]} 14. a3 {[%clk 0:02:43]}  Ba5 {[%clk 0:02:33]} 15. Ba2 {[%clk 0:02:42]}  c6 {[%clk 0:02:33]} 16. b4 {[%clk 0:02:38]}  Bc7 {[%clk 0:02:32]} 17. Rc1 {[%clk 0:02:38]}  f6 {[%clk 0:02:30]} 18. Re1 {[%clk 0:02:36]}  fxe5 {[%clk 0:02:27]} 19. Nxe5 {[%clk 0:02:36]}  Bf5 {[%clk 0:02:08]} 20. Qe2 {[%clk 0:02:24]}  Nc8 {[%clk 0:01:57]} 21. Ndf3 {[%clk 0:02:16]}  Nd6 {[%clk 0:01:51]} 22. Bb1 {[%clk 0:01:58]}  Ne4 {[%clk 0:01:47]} 23. Bxe4 {[%clk 0:01:57]}  Bxe4 {[%clk 0:01:46]} 24. Qd2 {[%clk 0:01:51]}  a5 {[%clk 0:01:35]} 25. Rc5 {[%clk 0:01:19]}  axb4 {[%clk 0:01:29]} 26. axb4 {[%clk 0:01:12]}  Bxe5 {[%clk 0:01:27]} 27. Nxe5 {[%clk 0:01:07]}  Qh4 {[%clk 0:01:16]} 28. f3 {[%clk 0:00:56]}  Bf5 {[%clk 0:01:09]} 29. Rb1 {[%clk 0:00:36]}  Bxb1 {[%clk 0:01:07]} 30. Qb2 {[%clk 0:00:10]}  Ra2 {[%clk 0:01:04]} 0-1